bitfinex/quotes_BTCUSD_20240918
["timestamp","ask_amount","ask_price","bid_price","bid_amount"]
[1726692686028,0.165593,60389.0,60385.0,0.209843]
[1726692686234,0.165598,60388.0,60385.0,0.04424]
[1726692686447,0.165598,60388.0,60385.0,0.03324]
[1726692686871,0.165598,60388.0,60385.0,0.04324]
[1726692687075,0.165593,60389.0,60385.0,0.208842]
[1726692687295,0.165593,60389.0,60385.0,0.198842]
[1726692687507,0.165593,60389.0,60385.0,0.208842]
[1726692687724,0.1915789,60389.0,60385.0,0.208842]
[1726692688144,0.9936407,60388.0,60385.0,0.03324]
[1726692688361,0.165608,60384.0,60381.0,0.03324]
[1726692688593,0.165608,60384.0,60381.0,0.198853]
[1726692688794,0.165604,60385.0,60383.0,0.03324]
[1726692690490,0.165601,60386.0,60383.0,0.212848]
[1726692690711,0.165601,60386.0,60383.0,0.198848]
[1726692691161,0.165599,60387.0,60384.0,0.165605]
[1726692691634,0.331191,60388.0,60383.0,0.03324]
[1726692691635,0.828032,60384.0,60383.0,0.03324]
[1726692691859,0.165612,60382.0,60379.0,0.165619]
[1726692692077,0.331213,60384.0,60379.0,0.165619]
[1726692692078,0.165609,60383.0,60379.0,0.165619]
[1726692692295,0.331213,60384.0,60379.0,0.165619]
[1726692692296,0.165613,60382.0,60379.0,0.165619]
[1726692692543,0.165615,60381.0,60378.0,0.165622]
[1726692692760,0.165611,60383.0,60380.0,0.165617]
[1726692693648,0.165607,60384.0,60381.0,0.165614]
[1726692694311,0.35718597,60387.0,60383.0,0.165609]
[1726692694547,0.165605,60385.0,60380.0,0.014]
[1726692694770,0.331188,60389.0,60380.0,0.34523]
[1726692694993,0.165604,60385.0,60382.0,0.165611]
[1726692695215,0.165604,60385.0,60380.0,0.34523]
[1726692695216,0.165604,60385.0,60381.0,0.165614]
[1726692695659,0.165604,60385.0,60380.0,0.34523]
[1726692695660,0.165604,60385.0,60382.0,0.165611]
[1726692696306,0.165607,60384.0,60380.0,0.33123]
[1726692696531,0.165607,60384.0,60381.0,0.178614]
[1726692696751,0.331154,60395.0,60386.0,0.331202]
[1726692697048,0.331154,60395.0,60381.0,0.013]
[1726692697049,0.99364893,60392.0,60391.0,0.165587]
[1726692697267,0.000422,60398.0,60393.0,0.33116]
[1726692697484,0.165991,60398.0,60395.0,0.165574]
[1726692697703,0.165991,60398.0,60393.0,0.33116]
[1726692697704,0.000422,60398.0,60393.0,0.33116]
[1726692697929,0.165575,60396.0,60392.0,0.165583]
[1726692698169,0.04949411,60411.0,60396.0,0.0944]
[1726692698399,0.10164499,60416.0,60415.0,0.601464]
[1726692698400,0.0031192,60416.0,60415.0,0.601464]
[1726692698632,0.0031192,60416.0,60415.0,0.932507]
[1726692699092,0.0031192,60416.0,60415.0,0.6078402]
[1726692699320,0.0031192,60416.0,60415.0,0.9388832]
[1726692699543,0.0031192,60416.0,60415.0,0.6078402]
[1726692699759,0.0031192,60416.0,60415.0,0.8569832]
[1726692700193,0.0031192,60416.0,60415.0,0.5259402]
[1726692700440,0.0031192,60416.0,60415.0,0.5029402]
[1726692700654,0.0031192,60416.0,60415.0,0.5169402]
[1726692700927,0.0035704,60416.0,60415.0,0.0203762]
[1726692701365,0.0035704,60416.0,60415.0,0.014]
[1726692701586,0.0035704,60416.0,60415.0,0.02009976]
[1726692702040,0.0043914,60416.0,60415.0,0.02009976]
[1726692702912,0.0043914,60416.0,60415.0,0.00609976]
[1726692703134,0.0043914,60416.0,60415.0,0.02009976]
[1726692703348,0.0043914,60416.0,60415.0,0.014]
[1726692703572,0.0043914,60416.0,60415.0,0.00610071]
[1726692703792,0.0043914,60416.0,60415.0,0.01210071]
[1726692704012,0.0043914,60416.0,60415.0,0.006]
[1726692704491,0.0043914,60416.0,60415.0,0.01211499]
[1726692704777,0.0043914,60416.0,60415.0,0.006]
[1726692705009,0.0043914,60416.0,60415.0,0.01211499]
[1726692705240,0.0043914,60416.0,60415.0,0.01211645]
[1726692706585,0.0043914,60416.0,60415.0,0.17763745]
[1726692707237,0.0043914,60416.0,60415.0,0.50868045]
[1726692707458,0.0043914,60416.0,60415.0,0.83972345]
[1726692707672,0.0043914,60416.0,60415.0,0.83372345]
[1726692707889,0.0043914,60416.0,60415.0,0.50268045]
[1726692708121,0.0043914,60416.0,60415.0,0.51068045]
[1726692711647,0.0043914,60416.0,60415.0,0.98646345]
[1726692711861,0.0043914,60416.0,60415.0,1.31750645]
[1726692712107,0.0043914,60416.0,60415.0,1.48854028]
[1726692712320,0.0043914,60416.0,60415.0,1.15749728]
[1726692712783,0.03036329,60416.0,60415.0,1.14349728]
[1726692712995,0.03036329,60416.0,60415.0,1.15749728]
[1726692713434,0.03036329,60416.0,60415.0,1.14349728]
[1726692713644,0.03036329,60416.0,60415.0,0.82645428]
[1726692713855,0.03036329,60416.0,60415.0,0.05335645]
[1726692714085,0.03036329,60416.0,60415.0,0.03935645]
[1726692714310,0.19588229,60416.0,60415.0,0.05335645]
[1726692714517,0.5009484,60416.0,60415.0,0.05335645]
[1726692714746,0.5009484,60416.0,60412.0,0.001642]
[1726692714747,0.496581,60413.0,60412.0,0.001642]
[1726692715180,0.8280862,60413.0,60412.0,0.001642]
[1726692716049,1.1591402,60413.0,60412.0,0.001642]
[1726692716327,0.8280862,60413.0,60412.0,0.001642]
[1726692716544,1.1591402,60413.0,60412.0,0.001642]
[1726692716757,1.1591402,60413.0,60412.0,0.005642]
[1726692716988,0.8280862,60413.0,60412.0,0.005642]
[1726692717213,0.8280862,60413.0,60412.0,0.001642]
[1726692717435,0.85406452,60413.0,60412.0,0.001642]
[1726692717660,0.85406452,60413.0,60412.0,0.005642]
[1726692718334,0.19195652,60413.0,60412.0,0.005642]
[1726692718549,0.52301052,60413.0,60412.0,0.005642]
[1726692718766,0.85406452,60413.0,60412.0,0.005642]
[1726692719962,0.85406452,60413.0,60412.0,0.001642]
[1726692720169,0.85406452,60413.0,60412.0,0.005642]
[1726692720458,0.85406452,60413.0,60412.0,0.001642]
[1726692720696,0.52301052,60413.0,60412.0,0.001642]
[1726692720906,0.85406452,60413.0,60412.0,0.001642]
[1726692721133,1.18511852,60413.0,60412.0,0.001642]
[1726692721386,0.85406452,60413.0,60412.0,0.001642]
[1726692721626,0.85406452,60413.0,60412.0,0.006642]
[1726692723642,0.85406452,60413.0,60412.0,0.001642]
[1726692724113,0.02642952,60413.0,60412.0,0.001642]
[1726692724330,0.19195652,60413.0,60412.0,0.001642]
[1726692724545,0.1919061,60413.0,60412.0,0.00725585]
[1726692724807,0.00040078,60413.0,60412.0,0.001642]
[1726692725032,0.16592778,60413.0,60412.0,0.00725585]
[1726692725254,0.16592778,60413.0,60412.0,0.007642]
[1726692725472,0.00040078,60413.0,60412.0,0.17878585]
[1726692725695,0.00122178,60413.0,60412.0,0.01325585]
[1726692725913,0.00122178,60413.0,60412.0,0.00725585]
[1726692726137,0.00122178,60413.0,60412.0,0.17278585]
[1726692726357,0.16674878,60413.0,60412.0,0.01725585]
[1726692726576,0.49780278,60413.0,60412.0,0.01725585]
[1726692727059,0.16674878,60413.0,60412.0,0.01725585]
[1726692727351,0.00122178,60413.0,60412.0,0.18278585]
[1726692727542,0.00122178,60413.0,60412.0,0.51384585]
[1726692727781,0.00122178,60413.0,60412.0,0.18278585]
[1726692728001,0.02719795,60413.0,60412.0,0.18278585]
[1726692728997,0.02719795,60413.0,60412.0,0.01725585]
[1726692729884,0.19272495,60413.0,60412.0,0.01725585]
[1726692730123,0.52377895,60413.0,60412.0,0.01725585]
[1726692730343,0.52377895,60413.0,60412.0,0.011642]
[1726692730344,1.02586678,60413.0,60412.0,0.011642]
[1726692730565,1.18588695,60413.0,60412.0,0.011642]
[1726692731302,0.85483295,60413.0,60412.0,0.011642]
[1726692732237,0.85483295,60413.0,60412.0,0.001642]
[1726692732455,1.18588695,60413.0,60412.0,0.002642]
[1726692732721,1.18588695,60413.0,60412.0,0.001642]
[1726692732936,1.23591978,60413.0,60412.0,0.001642]
[1726692733166,1.23591978,60413.0,60412.0,0.005642]
[1726692733389,1.24485804,60413.0,60412.0,0.005642]
[1726692735675,0.57381178,60413.0,60412.0,0.005642]
[1726692735899,0.85483295,60413.0,60412.0,0.005642]
[1726692736647,1.18588695,60413.0,60412.0,0.005642]
[1726692737317,1.18588695,60413.0,60412.0,0.001642]
[1726692738850,1.18588695,60413.0,60412.0,0.008642]
[1726692739304,1.51694095,60413.0,60412.0,0.001642]
[1726692739522,1.51694095,60413.0,60412.0,0.005642]
[1726692739523,1.66287365,60413.0,60412.0,0.005642]
[1726692739952,1.66287365,60413.0,60412.0,0.001642]
[1726692740365,1.66287365,60413.0,60412.0,0.008642]
[1726692740831,1.66287365,60413.0,60412.0,0.009642]
[1726692742982,1.23591965,60413.0,60412.0,0.009642]
[1726692743191,1.18588695,60413.0,60412.0,0.009642]
[1726692743592,1.15991078,60413.0,60412.0,0.009642]
[1726692744397,1.15991078,60413.0,60412.0,0.004642]
[1726692746067,1.20994696,60413.0,60412.0,0.004642]
[1726692746661,1.23592616,60413.0,60412.0,0.004642]
[1726692747127,1.20994696,60413.0,60412.0,0.004642]
[1726692751306,1.23592636,60413.0,60412.0,0.004642]
[1726692752693,0.90487236,60413.0,60412.0,0.004642]
[1726692752909,0.24276436,60413.0,60412.0,0.004642]
[1726692753585,0.57381836,60413.0,60412.0,0.004642]
[1726692753817,0.24276436,60413.0,60412.0,0.0098033]
[1726692754050,0.57381836,60413.0,60412.0,0.0098033]
[1726692754270,0.52378218,60413.0,60412.0,0.0098033]
[1726692754756,0.49780278,60413.0,60412.0,0.0098033]
[1726692754971,0.00122178,60413.0,60412.0,0.0098033]
[1726692755191,0.16674878,60413.0,60412.0,0.0098033]
[1726692755414,0.00122178,60413.0,60412.0,0.0098033]
[1726692756744,0.00122178,60413.0,60412.0,0.2558333]
[1726692756957,0.00122178,60413.0,60412.0,0.5868933]
[1726692757608,0.00122178,60413.0,60412.0,0.0903033]
[1726692758051,0.00122178,60413.0,60412.0,0.0098033]
[1726692758052,1.15991078,60413.0,60412.0,0.0098033]
[1726692758282,1.20995283,60413.0,60412.0,0.001642]
[1726692758495,1.20995368,60413.0,60412.0,0.001642]
[1726692758718,1.20995368,60413.0,60412.0,0.007642]
[1726692759366,1.23593123,60413.0,60412.0,0.007642]
[1726692760038,1.28560738,60413.0,60412.0,0.007642]
[1726692760264,1.23593123,60413.0,60412.0,0.007642]
[1726692760519,1.28562315,60413.0,60412.0,0.001642]
[1726692760955,1.28562315,60413.0,60412.0,0.004642]
[1726692761176,1.28562315,60413.0,60412.0,0.001642]
[1726692761392,0.95456915,60413.0,60412.0,0.001642]
[1726692761809,1.28562315,60413.0,60412.0,0.001642]
[1726692762027,1.28562315,60413.0,60412.0,0.007642]
[1726692762245,1.28562315,60413.0,60412.0,0.013642]
[1726692762459,1.28562315,60413.0,60412.0,0.001642]
[1726692763317,0.95456915,60413.0,60412.0,0.001642]
[1726692763768,1.28562315,60413.0,60412.0,0.001642]
[1726692763979,0.95456915,60413.0,60412.0,0.005642]
[1726692764192,0.29246115,60413.0,60412.0,0.005642]
[1726692764415,0.07724223,60413.0,60412.0,0.167172]
[1726692764662,0.00122178,60413.0,60412.0,0.0067338]
[1726692765561,0.00122178,60413.0,60412.0,0.0127338]
[1726692766325,0.00122178,60413.0,60412.0,0.0067338]
[1726692766796,0.00122178,60413.0,60412.0,1.08266446]
[1726692767013,0.00122178,60413.0,60412.0,0.8343838]
[1726692767293,0.00122178,60413.0,60412.0,1.1884438]
[1726692767544,0.00122178,60413.0,60412.0,1.2799438]
[1726692767778,0.00122178,60413.0,60412.0,1.9450913]
[1726692768025,0.0039402,60416.0,60415.0,1.18165]
[1726692768262,0.0039402,60416.0,60415.0,1.48117295]
[1726692768523,0.0039402,60416.0,60415.0,1.81221595]
[1726692769014,0.0039402,60416.0,60415.0,1.89541595]
[1726692769255,0.000822,60417.0,60415.0,1.89541595]
[1726692769256,0.000822,60417.0,60416.0,1.512671]
[1726692769520,0.000822,60417.0,60416.0,1.8516238]
[1726692770004,0.000822,60417.0,60416.0,1.8536238]
[1726692770252,0.0041339,60419.0,60418.0,1.160594]
[1726692770481,0.0041339,60419.0,60418.0,1.43714767]
[1726692770719,0.0041339,60419.0,60418.0,1.44201297]
[1726692770971,0.0041339,60419.0,60418.0,1.47525297]
[1726692771696,0.0041339,60419.0,60418.0,1.80627997]
[1726692771956,0.1693959,60437.0,60431.0,0.165477]
[1726692771957,0.24828066,60432.0,60431.0,0.165477]
[1726692772192,0.24828066,60432.0,60431.0,0.918287]
[1726692772435,0.0039339,60437.0,60436.0,0.82732]
[1726692772878,0.02989912,60437.0,60436.0,0.83214856]
[1726692773097,0.02989912,60437.0,60436.0,1.24347656]
[1726692773330,0.02989912,60437.0,60436.0,0.91254856]
[1726692773831,0.02989912,60437.0,60436.0,0.93554856]
[1726692774724,0.02989912,60437.0,60436.0,0.93954856]
[1726692774941,0.02989912,60437.0,60436.0,1.10260223]
[1726692775160,0.02989912,60437.0,60436.0,1.43353023]
[1726692775376,0.0039339,60437.0,60436.0,1.43353023]
[1726692776046,0.0039339,60437.0,60436.0,1.55493023]
[1726692777119,0.0039339,60437.0,60436.0,1.52493023]
[1726692777590,0.0039339,60437.0,60436.0,1.52093023]
[1726692777809,0.0039339,60437.0,60436.0,1.53393023]
[1726692778247,0.0039339,60437.0,60436.0,1.03994856]
[1726692778916,0.0039339,60437.0,60436.0,0.61762056]
[1726692779341,0.0039339,60437.0,60436.0,0.94854856]
[1726692779991,0.0039339,60437.0,60436.0,0.61762056]
[1726692780886,0.0039339,60437.0,60436.0,0.09822856]
[1726692781545,0.0039339,60437.0,60436.0,0.26369256]
[1726692782440,0.0039339,60437.0,60436.0,0.09822856]
[1726692782862,0.0039339,60437.0,60436.0,0.26369256]
[1726692783706,0.5003179,60437.0,60436.0,0.01782856]
[1726692783921,0.5003179,60437.0,60436.0,0.013]
[1726692783922,0.8320629,60437.0,60436.0,0.013]
[1726692784150,1.1629859,60437.0,60436.0,0.013]
[1726692784571,0.8320629,60437.0,60436.0,0.013]
[1726692785006,0.8320629,60437.0,60427.0,0.247787]
[1726692785007,0.33095,60432.0,60427.0,0.247787]
[1726692785242,0.165481,60430.0,60428.0,0.00464912]
[1726692785894,0.496449,60429.0,60428.0,0.00464912]
[1726692786124,0.165505,60421.0,60416.0,0.0793]
[1726692786392,0.0047559,60437.0,60419.0,0.165509]
[1726692786393,0.1655,60423.0,60419.0,0.165509]
[1726692786620,0.165502,60423.0,60419.0,0.17015812]
[1726692786840,0.165504,60422.0,60419.0,0.17015812]
[1726692787048,0.331,60423.0,60419.0,0.00464912]
[1726692787292,0.330983,60426.0,60418.0,0.165512]
[1726692787293,0.165506,60421.0,60418.0,0.165512]
[1726692787516,0.165506,60421.0,60419.0,0.00464912]
[1726692787733,0.331006,60422.0,60419.0,0.00464912]
[1726692787970,2.15158822,60420.0,60419.0,0.00464912]
[1726692788210,2.15158822,60420.0,60394.0,0.421153]
[1726692788211,0.827635,60413.0,60398.0,0.081]
[1726692788428,1.158689,60413.0,60398.0,0.081]
[1726692788649,0.827635,60413.0,60400.0,0.331123]
[1726692788882,0.827635,60413.0,60398.0,0.081]
[1726692788883,1.158689,60413.0,60398.0,0.081]
[1726692789113,1.158689,60413.0,60401.0,0.165559]
[1726692789328,1.18466646,60413.0,60399.0,0.496693]
[1726692789542,1.18466646,60413.0,60401.0,0.165558]
[1726692789753,0.85361246,60413.0,60402.0,0.331112]
[1726692790195,0.85361246,60413.0,60399.0,0.331129]
[1726692790408,1.18466646,60413.0,60398.0,0.081]
[1726692791057,1.18466646,60413.0,60399.0,0.24829299]
[1726692791270,1.78405429,60413.0,60399.0,0.24829299]
[1726692791492,1.88405429,60413.0,60399.0,0.24829299]
[1726692792548,1.88405429,60413.0,60412.0,0.002642]
[1726692793460,1.88405429,60413.0,60412.0,0.003642]
[1726692794357,1.88405429,60413.0,60412.0,0.001642]
[1726692794790,1.88405429,60413.0,60412.0,0.002642]
[1726692794992,1.85807683,60413.0,60412.0,0.002642]
[1726692797620,1.85807683,60413.0,60412.0,0.001642]
[1726692797844,1.85807683,60413.0,60412.0,0.002642]
[1726692798300,1.38196935,60413.0,60412.0,0.001642]
[1726692798521,1.28466935,60413.0,60412.0,0.001642]
[1726692800671,1.61572335,60413.0,60412.0,0.001642]
[1726692800904,1.71532335,60413.0,60412.0,0.001642]
[1726692801318,1.91635718,60413.0,60412.0,0.001642]
[1726692801753,2.38271118,60413.0,60412.0,0.001542]
[1726692801997,2.38271118,60413.0,60399.0,0.24819299]
[1726692801998,1.680162,60400.0,60399.0,0.24819299]
[1726692802236,1.680162,60400.0,60378.0,0.5501]
[1726692802237,0.165613,60382.0,60378.0,0.5501]
[1726692802457,0.165613,60382.0,60381.0,0.99789854]
[1726692802698,0.1916005,60382.0,60381.0,0.99789854]
[1726692802908,0.1916005,60382.0,60381.0,0.00461973]
[1726692803116,0.0259875,60382.0,60381.0,0.00461973]
[1726692803556,0.1915995,60382.0,60381.0,0.00461973]
[1726692804222,0.8540475,60382.0,60381.0,0.00461973]
[1726692804698,0.828075,60381.0,60378.0,0.081]
[1726692805209,0.828075,60381.0,60374.0,0.0039339]
[1726692805722,1.33033883,60381.0,60374.0,0.0039339]
[1726692807664,1.33133883,60381.0,60380.0,0.013642]
[1726692807877,1.35633099,60381.0,60380.0,0.001642]
[1726692808102,0.52283716,60381.0,60380.0,0.001642]
[1726692808340,0.52383716,60381.0,60380.0,0.00639173]
[1726692808564,0.52383716,60381.0,60380.0,0.001642]
[1726692808799,0.85506716,60381.0,60380.0,0.001642]
[1726692809889,0.85506716,60381.0,60380.0,0.006642]
[1726692810950,0.85506716,60381.0,60380.0,0.001642]
[1726692810951,0.85406716,60381.0,60380.0,0.001642]
[1726692811369,0.85406716,60381.0,60380.0,0.006642]
[1726692811793,0.85406716,60381.0,60380.0,0.001642]
[1726692812017,0.52283716,60381.0,60380.0,0.006642]
[1726692812239,0.85406716,60381.0,60380.0,0.006642]
[1726692812481,0.85406716,60381.0,60380.0,0.01156968]
[1726692813859,0.85406716,60381.0,60380.0,0.00656968]
[1726692814065,0.85506716,60381.0,60380.0,0.01356968]
[1726692814995,0.829075,60381.0,60380.0,0.01356968]
[1726692815388,0.828075,60381.0,60380.0,0.00656968]
[1726692816508,0.496845,60381.0,60380.0,0.00656968]
[1726692816721,0.497845,60381.0,60380.0,0.009642]
[1726692816934,0.497845,60381.0,60380.0,0.01456968]
[1726692817163,0.496845,60381.0,60380.0,0.00656968]
[1726692817373,0.829075,60381.0,60380.0,0.01356968]
[1726692817586,0.829075,60381.0,60380.0,0.00656968]
[1726692817796,0.829075,60381.0,60380.0,0.001642]
[1726692818010,0.830075,60381.0,60380.0,0.01556968]
[1726692818223,0.85406619,60381.0,60380.0,0.001642]
[1726692818437,0.85406619,60381.0,60380.0,0.01356968]
[1726692818651,0.85506619,60381.0,60380.0,0.008642]
[1726692818911,0.85506619,60381.0,60380.0,0.01356968]
[1726692819335,0.52383619,60381.0,60380.0,0.01356968]
[1726692820221,0.19260619,60381.0,60380.0,0.00656968]
[1726692820458,0.52283619,60381.0,60380.0,0.00656968]
[1726692820668,0.52383619,60381.0,60380.0,0.01561143]
[1726692821111,0.85506619,60381.0,60380.0,0.01561143]
[1726692823110,1.18629619,60381.0,60380.0,0.01561143]
[1726692823548,0.85506619,60381.0,60380.0,0.01561143]
[1726692830446,1.18629619,60381.0,60380.0,0.01561143]
[1726692830932,1.18629619,60381.0,60380.0,0.010642]
[1726692831136,1.160305,60381.0,60380.0,0.010642]
[1726692832426,1.18629636,60381.0,60380.0,0.010642]
[1726692834942,1.160305,60381.0,60380.0,0.010642]
[1726692836116,0.829075,60381.0,60380.0,0.010642]
[1726692836331,0.829075,60381.0,60380.0,0.01559169]
[1726692836748,0.497845,60381.0,60380.0,0.01559169]
[1726692837818,0.829075,60381.0,60380.0,0.01559169]
[1726692838257,0.57391293,60381.0,60380.0,0.01559169]
[1726692840019,0.90514293,60381.0,60380.0,0.01559169]
[1726692840465,0.57391293,60381.0,60380.0,0.01559169]
[1726692840673,0.90514293,60381.0,60380.0,0.01559169]
[1726692840884,0.57391293,60381.0,60380.0,0.01559169]
[1726692841097,0.90514293,60381.0,60380.0,0.01559169]
[1726692842181,0.57391293,60381.0,60380.0,0.01559169]
[1726692842842,0.90514293,60381.0,60380.0,0.01559169]
[1726692845036,0.87915231,60381.0,60380.0,0.01559169]
[1726692847159,0.54792231,60381.0,60380.0,0.01559169]
[1726692849950,0.05107731,60381.0,60380.0,0.01559169]
[1726692850166,0.05107731,60381.0,60380.0,2.03603619]
[1726692850167,0.001,60381.0,60380.0,2.03603619]
[1726692850393,0.001,60381.0,60380.0,1.70480119]
[1726692851736,0.001,60381.0,60380.0,1.53376736]
[1726692852194,0.001,60381.0,60380.0,0.09249169]
[1726692852432,0.02698747,60381.0,60380.0,0.01559169]
[1726692852651,0.52383247,60381.0,60380.0,0.01559169]
[1726692852874,0.85506247,60381.0,60380.0,0.01559169]
[1726692853102,0.85506247,60381.0,60380.0,0.010642]
[1726692854226,1.18629247,60381.0,60380.0,0.010642]
[1726692854723,1.19556798,60381.0,60380.0,0.010642]
[1726692854936,1.16958051,60381.0,60380.0,0.010642]
[1726692857990,1.19557242,60381.0,60380.0,0.010642]
[1726692858477,0.85506691,60381.0,60380.0,0.010642]
[1726692858717,0.02699191,60381.0,60380.0,0.961029]
[1726692858949,0.001,60381.0,60380.0,1.292264]
[1726692859185,0.001,60381.0,60380.0,1.29715841]
[1726692861793,0.001,60381.0,60380.0,0.61168841]
[1726692862001,0.001,60381.0,60380.0,0.94292341]
[1726692862884,0.001,60381.0,60380.0,0.01553641]
[1726692863141,0.166615,60381.0,60380.0,0.01553641]
[1726692863410,0.1926031,60381.0,60380.0,0.010642]
[1726692863935,0.0269881,60381.0,60380.0,0.010642]
[1726692864198,0.0269881,60381.0,60380.0,0.01543616]
[1726692864909,0.001,60381.0,60380.0,0.01543616]
[1726692865151,0.166615,60381.0,60380.0,0.01543616]
[1726692867623,0.497845,60381.0,60380.0,0.01543616]
[1726692868049,0.1926051,60381.0,60380.0,0.010642]
[1726692868270,0.0269901,60381.0,60380.0,0.010642]
[1726692868478,0.1926051,60381.0,60380.0,0.01543616]
[1726692868689,0.5238351,60381.0,60380.0,0.01543616]
[1726692869324,0.1926051,60381.0,60380.0,0.01543616]
[1726692870886,0.0269901,60381.0,60380.0,0.01543616]
[1726692871094,0.0269901,60381.0,60380.0,0.18105316]
[1726692871316,0.0269901,60381.0,60380.0,0.51228816]
[1726692872374,0.0269901,60381.0,60380.0,1.19775816]
[1726692872590,0.001,60381.0,60380.0,1.19775816]
[1726692873889,0.001,60381.0,60380.0,1.23099816]
[1726692874797,0.0259881,60389.0,60388.0,0.496786]
[1726692875011,0.24842457,60392.0,60388.0,0.33601413]
[1726692875222,0.24842457,60392.0,60389.0,0.165591]
[1726692875430,0.165584,60392.0,60389.0,0.165591]
[1726692875647,0.165593,60389.0,60386.0,0.165599]
[1726692875867,0.16559,60391.0,60384.0,0.33115763]
[1726692876105,0.165583,60393.0,60386.0,0.331201]
[1726692876335,0.165583,60393.0,60389.0,0.165591]
[1726692877855,0.19156873,60393.0,60389.0,0.165591]
[1726692878264,0.165585,60392.0,60390.0,0.00479536]
[1726692878477,0.165587,60391.0,60390.0,0.00479536]
[1726692879552,0.165588,60391.0,60388.0,0.165595]
[1726692880009,0.165588,60391.0,60390.0,0.01]
[1726692880227,0.165588,60391.0,60390.0,0.021]
[1726692880471,0.165588,60391.0,60390.0,0.02579536]
[1726692880695,0.165585,60392.0,60390.0,0.02579536]
[1726692881553,0.165585,60392.0,60390.0,0.00479536]
[1726692881763,0.02598573,60393.0,60391.0,0.331175]
[1726692881977,0.02598573,60393.0,60392.0,0.496753]
[1726692882193,0.02598573,60393.0,60392.0,0.50154836]
[1726692883101,0.02598573,60393.0,60392.0,0.17037936]
[1726692884965,0.02598573,60393.0,60392.0,0.17937936]
[1726692885640,0.19156773,60393.0,60392.0,0.01379536]
[1726692885872,0.19156773,60393.0,60392.0,0.00479536]
[1726692886098,0.19156773,60393.0,60392.0,0.01]
[1726692886301,0.19156773,60393.0,60392.0,0.01476248]
[1726692886753,0.02598573,60393.0,60392.0,0.18034648]
[1726692887006,0.02598573,60393.0,60392.0,0.51151548]
[1726692887228,0.000822,60399.0,60398.0,0.165568]
[1726692887456,0.000822,60399.0,60398.0,1.158976]
[1726692887673,0.000822,60399.0,60398.0,1.16373848]
[1726692888816,0.000822,60399.0,60398.0,0.84660248]
[1726692889032,0.000822,60399.0,60398.0,1.17773848]
[1726692889250,0.000822,60399.0,60398.0,1.99487198]
[1726692889473,0.000822,60399.0,60398.0,2.07557198]
[1726692889701,0.24838138,60409.0,60408.0,1.158783]
[1726692889922,0.24838138,60409.0,60408.0,1.287693]
[1726692890372,0.165507,60421.0,60416.0,0.331033]
[1726692890600,0.0259754,60417.0,60410.0,0.331067]
[1726692890811,0.0259754,60417.0,60412.0,0.331055]
[1726692891023,0.0259754,60417.0,60413.0,0.331051]
[1726692891230,0.0259754,60417.0,60414.0,0.17013707]
[1726692891448,0.1914924,60417.0,60414.0,0.00461407]
[1726692891885,0.1914924,60417.0,60413.0,0.165525]
[1726692891886,0.0259754,60417.0,60412.0,0.331055]
[1726692892096,0.0259754,60417.0,60415.0,0.00461407]
[1726692892310,0.0259754,60417.0,60415.0,0.165521]
[1726692892532,0.0259754,60417.0,60416.0,0.00461407]
[1726692892949,0.16552,60416.0,60414.0,0.01]
[1726692893167,0.0259754,60417.0,60416.0,0.00461407]
[1726692893378,0.1914924,60417.0,60414.0,0.01]
[1726692893624,0.1914924,60417.0,60415.0,0.00461407]
[1726692894066,0.165519,60416.0,60415.0,0.00461407]
[1726692894281,0.0259754,60417.0,60415.0,0.00461407]
[1726692894496,0.1914924,60417.0,60415.0,0.00461407]
[1726692894724,0.165519,60416.0,60415.0,0.01461407]
[1726692894961,0.165515,60418.0,60415.0,0.01461407]
[1726692895434,0.331032,60418.0,60415.0,0.01461407]
[1726692895647,0.165517,60417.0,60415.0,0.01461407]
[1726692895854,0.165519,60416.0,60415.0,0.00461407]
[1726692896064,0.165519,60416.0,60415.0,0.01361407]
[1726692896275,0.496557,60416.0,60415.0,0.009]
[1726692897189,0.496557,60416.0,60415.0,0.01345922]
[1726692897752,1.09102883,60416.0,60415.0,0.00445922]
[1726692897961,1.09102883,60416.0,60415.0,0.01]
[1726692897962,1.42206683,60416.0,60415.0,0.01]
[1726692898207,0.165551,60405.0,60403.0,0.24827655]
[1726692898455,0.331094,60406.0,60403.0,0.24827655]
[1726692898456,0.496654,60404.0,60403.0,0.24827655]
[1726692898714,0.331073,60410.0,60399.0,0.41384055]
[1726692898963,0.331073,60410.0,60400.0,0.165562]
[1726692898964,0.331102,60405.0,60400.0,0.165562]
[1726692899445,0.331102,60405.0,60401.0,0.16556]
[1726692899446,0.165551,60404.0,60401.0,0.16556]
[1726692899920,0.02597973,60405.0,60403.0,0.165553]
[1726692900654,0.02597973,60405.0,60404.0,0.496654]
[1726692901098,0.165557,60402.0,60399.0,0.002]
[1726692901344,0.02597973,60405.0,60398.0,0.0807]
[1726692901345,0.02597973,60405.0,60401.0,0.165559]
[1726692901585,0.02597973,60405.0,60403.0,0.012]
[1726692901586,0.165552,60404.0,60403.0,0.012]
[1726692902018,0.165555,60403.0,60400.0,0.165562]
[1726692902237,0.02597973,60405.0,60401.0,0.16556]
[1726692902433,0.165552,60404.0,60401.0,0.16556]
[1726692903476,0.02597973,60405.0,60404.0,0.165551]
[1726692903695,0.000822,60419.0,60404.0,0.444603]
[1726692903902,0.24830326,60409.0,60408.0,0.496621]
[1726692904142,0.165523,60415.0,60412.0,0.165529]
[1726692904375,0.165523,60415.0,60411.0,0.165532]
[1726692905206,0.166339,60417.0,60414.0,0.165522]
[1726692905683,0.000822,60417.0,60413.0,0.331051]
[1726692905941,0.000822,60417.0,60410.0,0.331066]
[1726692906188,0.165524,60414.0,60411.0,0.165532]
[1726692906428,0.331039,60416.0,60408.0,0.344078]
[1726692906429,0.331045,60415.0,60408.0,0.344078]
[1726692906674,0.331039,60416.0,60411.0,0.165532]
[1726692906898,0.331047,60415.0,60409.0,0.331073]
[1726692907126,0.331047,60415.0,60411.0,0.165531]
[1726692907127,0.02597591,60414.0,60411.0,0.165531]
[1726692907571,0.02597591,60414.0,60409.0,0.165536]
[1726692907782,0.02597591,60414.0,60411.0,0.165531]
[1726692908051,0.16553,60412.0,60411.0,0.006]
[1726692908269,0.99317194,60412.0,60394.0,0.165578]
[1726692908487,0.19700974,60414.0,60399.0,0.99317194]
[1726692908488,0.165562,60400.0,60399.0,0.99317194]
[1726692908718,0.165562,60400.0,60390.0,0.331177]
[1726692908719,0.165562,60400.0,60397.0,0.16557]